bitfinex/quotes_SOLUSD_20260310
["timestamp","ask_amount","ask_price","bid_price","bid_amount"]
[1773155286698,11.14103291,87.94,87.91,10.67883032]
[1773155287278,11.37022592,87.949,87.92,10.67883032]
[1773155287486,11.36893325,87.959,87.92,10.67883032]
[1773155287797,39.79126638,87.959,87.911,11.37514076]
[1773155288100,10.67883032,87.95,87.92,10.67883032]
[1773155288300,10.67883032,87.96,87.93,10.67883032]
[1773155288602,0.46220259,87.964,87.93,10.67883032]
[1773155288802,0.46220259,87.987,87.95,10.67883032]
[1773155288982,11.46626614,87.98,87.96,10.67883032]
[1773155289184,11.46626614,87.98,87.95,10.67883032]
[1773155289503,0.1,87.98,87.95,10.67883032]
[1773155289823,0.56220259,88.0,87.97,10.67883032]
[1773155289999,11.36376549,87.999,87.97,10.67883032]
[1773155290598,11.82596808,87.999,87.97,10.67883032]
[1773155291001,11.82596808,87.999,87.95,10.67883032]
[1773155291002,0.46220259,87.989,87.95,10.67883032]
[1773155291305,0.46220259,87.987,87.932,0.46453483]
[1773155291503,0.46220259,87.979,87.94,10.67883032]
[1773155292099,0.46220259,87.979,87.903,45.50456481]
[1773155292100,0.46220259,87.986,87.908,0.46453483]
[1773155292302,10.67883032,87.93,87.9,22.05537669]
[1773155292500,10.67883032,87.93,87.901,1.13764348]
[1773155292806,0.46220259,87.919,87.878,0.46453483]
[1773155293005,10.67883032,87.94,87.901,0.46453483]
[1773155293184,10.67883032,87.94,87.903,0.46453483]
[1773155293385,10.67883032,87.93,87.904,11.37604659]
[1773155293585,10.67883032,87.93,87.9,10.67883032]
[1773155293586,0.46220259,87.929,87.891,0.46453483]
[1773155293803,0.46220259,87.929,87.894,11.37727937]
[1773155293985,0.46220259,87.929,87.9,10.67883032]
[1773155294186,10.67883032,87.92,87.883,11.37872731]
[1773155294404,0.46220259,87.919,87.883,11.37872731]
[1773155294585,10.67883032,87.92,87.884,0.46453483]
[1773155294782,11.37151889,87.939,87.901,0.46453483]
[1773155295111,1.32829525,87.959,87.883,11.37872731]
[1773155295112,11.36937922,87.956,87.921,0.46453483]
[1773155295293,4.82477569,88.012,87.883,145.92835823]
[1773155295294,11.36445726,87.994,87.952,40.25896815]
[1773155295482,10.77883032,88.0,87.97,10.67883032]
[1773155295681,10.77883032,88.0,87.952,39.79443332]
[1773155295682,11.36118338,88.019,87.981,0.46453483]
[1773155295889,0.46220259,88.028,87.981,0.46453483]
[1773155295890,11.3604802,88.025,87.99,10.67883032]
[1773155296107,10.67883032,88.04,88.001,0.46453483]
[1773155296291,10.67883032,88.01,87.97,10.67883032]
[1773155296495,10.67883032,88.01,87.971,0.46453483]
[1773155296704,10.67883032,88.02,87.99,10.67883032]
[1773155296890,39.75510852,88.039,87.96,10.67883032]
[1773155296891,10.67883032,88.0,87.96,10.67883032]
[1773155297287,0.46220259,87.979,87.94,10.67883032]
[1773155297499,10.67883032,87.97,87.936,11.37190684]
[1773155297710,11.36634878,87.979,87.941,0.46453483]
[1773155297905,10.67883032,87.97,87.93,10.67883032]
[1773155298107,39.78222074,87.979,87.912,11.37500068]
[1773155298108,10.67883032,87.95,87.912,11.37500068]
[1773155298911,11.36634878,87.979,87.94,11.14336515]
[1773155299404,10.67883032,87.97,87.94,0.46453483]
[1773155299609,11.36764087,87.969,87.94,22.51475006]
[1773155299906,10.67883032,87.99,87.95,10.67883032]
[1773155300098,10.67883032,87.97,87.935,11.37195128]
[1773155300301,0.45876578,87.969,87.935,11.37195128]
[1773155300606,0.45876578,87.969,87.94,10.67883032]
[1773155300794,0.45876578,87.969,87.935,11.37195128]
[1773155301313,0.45876578,87.982,87.94,10.67883032]
[1773155301508,10.67883032,87.98,87.94,10.67883032]
[1773155301805,10.67883032,87.97,87.94,10.67883032]
[1773155302012,11.82511456,87.979,87.94,10.67883032]
[1773155302189,11.82511456,87.979,87.95,10.67883032]
[1773155302387,11.82511456,87.979,87.941,12.50838629]
[1773155302702,11.82511456,87.979,87.95,10.67883032]
[1773155302897,45.43525081,88.038,87.95,10.67883032]
[1773155302898,11.36538078,87.987,87.951,1.13699673]
[1773155303102,11.36538078,87.987,87.95,10.67883032]
[1773155303604,11.36461078,87.993,87.96,10.67883032]
[1773155303911,1.32829525,88.011,87.97,11.14298504]
[1773155303912,10.67883032,88.01,87.97,11.14298504]
[1773155304104,11.36182879,88.014,87.98,10.67883032]
[1773155304838,10.67883032,88.01,87.98,10.67883032]
[1773155305599,10.67883032,88.01,87.97,0.46415472]
[1773155305799,0.45876578,88.008,87.963,1.13684162]
[1773155306005,39.76866002,88.009,87.963,1.13684162]
[1773155306006,0.45876578,87.999,87.963,1.13684162]
[1773155306311,10.67883032,88.0,87.97,10.67883032]
[1773155306614,0.45876578,87.999,87.97,10.67883032]
[1773155306815,0.45876578,88.009,87.98,10.67883032]
[1773155307116,10.67883032,88.03,88.0,10.67883032]
[1773155307418,11.35989276,88.029,88.0,10.67883032]
[1773155307788,0.45876578,88.028,88.0,10.67883032]
[1773155307993,10.67883032,88.02,87.99,10.67883032]
[1773155308415,0.45876578,88.028,87.99,10.67883032]
[1773155308792,0.45876578,88.028,88.0,10.67883032]
[1773155309015,0.45876578,88.028,87.99,10.67883032]
[1773155310607,11.35989276,88.029,88.0,10.67883032]
[1773155310810,0.45876578,88.028,88.0,10.67883032]
[1773155311599,11.35989276,88.029,88.0,10.67883032]
[1773155312025,11.35860243,88.039,88.0,10.67883032]
[1773155312206,11.35860243,88.039,88.01,10.67883032]
[1773155312606,11.3580697,88.044,88.011,11.36221608]
[1773155312795,11.3580697,88.044,88.02,10.67883032]
[1773155313115,0.45876578,88.049,87.993,1.60060875]
[1773155313327,11.3559226,88.06,88.0,10.67883032]
[1773155313328,0.45876578,88.039,88.0,10.67883032]
[1773155313906,0.45876578,88.039,88.01,10.67883032]
[1773155314719,11.3573124,88.049,88.02,10.67883032]
[1773155315728,0.45876578,88.062,88.03,10.67883032]
[1773155315938,11.35473322,88.069,88.03,10.67883032]
[1773155316227,0.45876578,88.059,88.03,10.67883032]
[1773155316729,11.35615162,88.058,88.03,10.67883032]
[1773155317027,0.45876578,88.057,88.022,11.36079616]
[1773155317206,11.35615162,88.058,88.03,10.67883032]
[1773155318211,11.35486215,88.068,88.04,10.67883032]
[1773155318725,11.35486215,88.068,88.022,39.76278657]
[1773155318726,11.35744139,88.048,88.02,10.67883032]
[1773155319302,39.75104487,88.048,88.02,10.67883032]
[1773155319614,0.45876578,88.047,88.02,10.67883032]
[1773155320321,0.45876578,88.047,88.012,1.60036341]
[1773155320518,0.45876578,88.047,88.02,10.67883032]
[1773155321222,11.35769938,88.046,88.02,10.67883032]
[1773155321608,11.35769938,88.046,88.012,11.82615148]
[1773155321931,11.35769938,88.046,88.02,10.67883032]
[1773155322305,11.35769938,88.046,88.0,10.67883032]
[1773155322306,0.45876578,88.029,88.0,10.67883032]
[1773155322617,10.67883032,88.02,87.99,10.67883032]
[1773155322917,3.69383402,88.043,87.99,10.67883032]
[1773155322918,0.45876578,88.019,87.99,10.67883032]
[1773155323428,11.36002181,88.028,87.992,0.46415472]
[1773155323628,10.67883032,88.04,88.01,10.67883032]
[1773155323806,0.45876578,88.042,88.01,10.67883032]
[1773155324810,11.3583444,88.041,88.011,11.36221608]
[1773155326822,11.3573124,88.049,88.011,11.36221608]
[1773155327124,0.48008207,88.048,88.011,11.36221608]
[1773155327620,10.67883032,88.04,88.01,11.14298504]
[1773155327927,0.48008207,88.039,88.003,12.49951787]
[1773155328119,0.48008207,88.039,88.003,11.36319298]
[1773155328321,0.48008207,88.039,88.01,10.67883032]
[1773155328623,10.67883032,88.05,88.02,10.67883032]
[1773155329114,11.3573124,88.049,88.021,11.36092523]
[1773155329608,10.62203715,88.04,88.021,11.36092523]
[1773155329820,0.49709134,88.048,88.012,12.49829567]
[1773155330024,0.49709134,88.039,88.005,11.36286599]
[1773155330425,0.49709134,88.039,88.001,0.46699352]
[1773155330628,0.49709134,88.039,88.002,11.3633781]
[1773155330847,0.49709134,88.039,87.992,28.41145698]
[1773155330848,0.49709134,88.029,87.99,10.62203715]
[1773155331008,0.49709134,88.019,87.981,11.3660904]
[1773155331309,0.49709134,88.017,87.981,11.3660904]
[1773155332213,0.49709134,88.017,87.99,10.62203715]
[1773155332830,11.36131245,88.018,87.99,10.62203715]
[1773155333207,11.36072392,88.023,87.991,11.36479867]
[1773155334030,0.49709134,88.027,88.0,10.62203715]
[1773155334229,0.49709134,88.048,88.01,10.62203715]
[1773155335430,0.49709134,88.046,88.002,11.83037162]
[1773155335628,0.49709134,88.046,88.01,10.62203715]
[1773155335824,0.49709134,88.029,88.003,1.13632489]
[1773155336023,0.49709134,88.019,87.99,10.62203715]
[1773155336330,0.49709134,88.029,87.99,10.62203715]
[1773155336532,0.49709134,88.009,87.98,10.62203715]
[1773155336912,0.49709134,88.009,87.98,21.98814519]
[1773155337617,11.85969473,88.008,87.98,21.98814519]
[1773155338022,11.85969473,88.008,87.974,0.46699352]
[1773155338023,10.62203715,87.99,87.955,0.46699352]
[1773155338226,11.36212241,88.012,87.98,11.08903067]
[1773155338432,0.49709134,88.011,87.98,10.62203715]
[1773155339643,1.41980917,88.04,87.98,10.62203715]
[1773155339644,0.49709134,88.039,88.001,39.77227531]
[1773155339821,11.85569377,88.039,88.01,10.62203715]
[1773155340238,0.49709134,88.038,88.01,10.62203715]
[1773155341021,0.49709134,88.038,88.002,1.13633781]
[1773155341223,0.49709134,88.019,87.98,10.62203715]
[1773155341438,0.49709134,88.009,87.972,11.36725321]
[1773155341635,0.49709134,88.007,87.972,11.36725321]
[1773155341837,10.62203715,88.0,87.972,11.36725321]
[1773155342026,0.49709134,88.007,87.972,11.36725321]
[1773155342230,0.49709134,87.979,87.925,0.46699352]
[1773155342534,0.49709134,87.949,87.91,10.62203715]
[1773155343028,10.62203715,87.94,87.91,10.62203715]
[1773155343338,11.11912849,87.94,87.91,10.62203715]
[1773155343531,11.11912849,87.94,87.905,0.46699352]
[1773155343735,11.11912849,87.94,87.882,3.69383402]
[1773155343736,0.49709134,87.919,87.87,10.62203715]
[1773155344041,0.49709134,87.919,87.88,10.62203715]
[1773155345545,0.49709134,87.919,87.881,0.46699352]
[1773155346051,11.37423508,87.918,87.882,11.37889442]
[1773155346345,11.37423508,87.918,87.87,28.45085153]
[1773155346346,0.49709134,87.909,87.877,11.37944084]
[1773155346726,0.49709134,87.899,87.848,0.46699352]
[1773155346939,0.49709134,87.899,87.87,10.62203715]
[1773155347331,0.49709134,87.899,87.861,0.46699352]
[1773155347541,0.49709134,87.899,87.87,10.62203715]
[1773155347928,0.49709134,87.88,87.841,39.84471943]
[1773155348127,11.11912849,87.88,87.851,11.38290969]
[1773155348350,0.49709134,87.879,87.851,11.38290969]
[1773155348930,45.49252275,87.927,87.851,11.38290969]
[1773155348931,0.49709134,87.943,87.87,10.62203715]
[1773155349147,10.62203715,87.9,87.87,10.62203715]
[1773155349451,39.79669573,87.947,87.891,0.46699352]
[1773155349658,10.62203715,87.93,87.891,0.46699352]
[1773155349910,10.62203715,87.93,87.851,187.81801]
[1773155349911,3.69383402,87.944,87.88,10.62203715]
[1773155350027,85.27863371,87.947,87.87,10.62203715]
[1773155350028,11.3766937,87.899,87.87,10.62203715]
[1773155350233,10.62203715,87.91,87.871,0.46699352]
[1773155350445,10.62203715,87.91,87.88,10.62203715]
[1773155350654,10.62203715,87.92,87.881,0.46699352]
[1773155350852,10.62203715,87.93,87.891,0.46699352]
[1773155351160,10.62203715,87.92,87.863,0.46699352]
[1773155351330,10.62203715,87.92,87.881,0.46699352]
[1773155351526,0.49709134,87.927,87.89,10.62203715]
[1773155351744,0.49709134,87.919,87.882,0.46699352]
[1773155351938,0.49709134,87.899,87.867,0.46699352]
[1773155352143,10.62203715,87.88,87.855,11.38227787]
[1773155353844,45.4943502,87.924,87.855,11.38227787]
[1773155353845,10.62203715,87.91,87.871,0.46699352]
[1773155354161,11.11912849,87.92,87.884,11.37853766]
[1773155354362,0.49709134,87.919,87.885,0.46699352]
[1773155354758,11.11912849,87.93,87.89,11.08903067]
[1773155354963,0.49709134,87.929,87.891,0.46699352]
[1773155355865,11.86997043,87.929,87.892,11.37759978]
[1773155356077,10.62203715,87.94,87.901,0.46699352]
[1773155356244,1.42113281,87.958,87.921,0.46699352]
[1773155356245,11.36917543,87.958,87.921,0.46699352]
[1773155356643,11.36686558,87.975,87.941,0.46699352]
[1773155356862,0.49709134,87.969,87.93,10.62203715]
[1773155357848,0.49709134,87.957,87.916,11.37449383]
[1773155358047,0.49709134,87.949,87.916,11.37449383]
[1773155358849,0.49709134,87.949,87.882,3.69383402]
[1773155358850,0.49709134,87.939,87.911,11.37512712]
[1773155359348,0.49709134,87.939,87.893,0.49448416]
[1773155359554,11.11100729,87.93,87.893,0.49448416]
[1773155359773,0.48897014,87.929,87.9,10.62203715]
[1773155359978,0.48897014,87.929,87.901,11.37643485]
[1773155360275,11.37022592,87.949,87.92,10.62203715]
[1773155360651,11.85919606,87.949,87.911,0.49448416]
[1773155361063,11.37022592,87.949,87.911,0.49448416]
[1773155361264,11.37022592,87.949,87.92,10.62203715]
[1773155361647,11.37022592,87.949,87.911,0.49448416]
[1773155361648,0.48897014,87.948,87.911,0.49448416]
[1773155361855,11.37048449,87.947,87.912,11.37501137]
[1773155362151,11.37048449,87.947,87.912,11.86949553]
[1773155362768,0.48897014,87.946,87.912,11.37501137]
[1773155363469,0.48897014,87.946,87.902,11.37630543]
[1773155363765,0.48897014,87.939,87.902,11.37630543]
[1773155363950,11.3716482,87.938,87.903,0.49448416]
[1773155364158,11.3716482,87.938,87.902,11.37630543]
[1773155364159,0.48897014,87.937,87.902,11.37630543]
[1773155364563,0.48897014,87.937,87.902,11.87078959]
[1773155364887,11.3716482,87.938,87.91,11.11652131]
[1773155365269,11.3716482,87.938,87.91,0.49448416]
[1773155365451,11.3716482,87.938,87.902,11.37630543]
[1773155365452,0.48897014,87.937,87.902,11.37630543]
[1773155366059,0.48897014,87.935,87.91,10.62203715]
[1773155366462,0.48897014,87.935,87.9,28.93571156]
[1773155366463,0.48897014,87.935,87.9,11.11652131]
[1773155366669,0.48897014,87.935,87.897,11.37687153]
[1773155366670,0.48897014,87.934,87.897,11.37687153]
[1773155367466,0.48897014,87.934,87.9,10.62203715]
[1773155368168,0.48897014,87.932,87.9,10.62203715]
[1773155368377,11.37180033,87.937,87.91,10.62203715]
[1773155368984,1.42103587,87.964,87.93,10.62203715]
[1773155369171,1.42103587,87.964,87.9,10.62203715]
[1773155369172,0.48897014,87.963,87.94,10.62203715]
[1773155369754,0.48897014,87.963,87.92,0.49448416]
[1773155369951,0.48897014,87.963,87.89,233.24610304]
[1773155369952,0.48897014,87.949,87.91,10.62203715]
[1773155370251,12.7916496,87.948,87.912,0.49448416]
[1773155370572,0.48897014,88.005,87.944,0.49448416]
[1773155370876,0.48897014,88.003,87.97,10.62203715]
[1773155371355,0.48897014,88.003,87.935,0.49448416]
[1773155371556,0.48897014,87.969,87.921,0.49448416]
[1773155371876,0.48897014,87.949,87.912,0.49448416]
[1773155372054,0.48897014,87.939,87.902,11.37630543]
[1773155372259,0.48897014,87.939,87.902,39.817069]
[1773155372460,0.48897014,87.952,87.92,10.62203715]
[1773155372764,11.36893325,87.959,87.921,0.49448416]
[1773155372963,0.48897014,87.959,87.921,0.49448416]
[1773155373369,0.48897014,87.958,87.921,0.49448416]
[1773155374052,0.48897014,87.979,87.931,0.49448416]
[1773155374258,0.48897014,87.978,87.94,11.11652131]
[1773155375770,0.48897014,87.978,87.941,0.49448416]
[1773155375973,0.48897014,87.978,87.95,10.62203715]
[1773155376166,0.48897014,87.976,87.941,11.37126027]
[1773155376475,0.48897014,87.976,87.911,91.00068697]
[1773155376476,0.48897014,87.949,87.914,11.37475259]
[1773155376772,0.48897014,87.929,87.891,11.37772923]
[1773155377075,0.48897014,87.929,87.892,0.49448416]
[1773155377253,11.11100729,87.94,87.901,0.49448416]
[1773155377454,0.48897014,87.94,87.901,0.49448416]
[1773155378179,0.48897014,87.94,87.903,0.49448416]
[1773155378368,0.48897014,87.94,87.91,10.62203715]
[1773155378565,63.83474664,87.99,87.92,11.11652131]
[1773155378566,0.48897014,87.959,87.92,11.11652131]
[1773155378951,0.48897014,87.957,87.92,11.11652131]
[1773155379160,0.48897014,87.957,87.92,0.49448416]
[1773155379566,0.48897014,87.949,87.91,10.62203715]
[1773155380062,0.48897014,87.949,87.92,10.62203715]
[1773155380264,0.48897014,87.949,87.903,1.1376176]
[1773155380265,0.48897014,87.949,87.911,0.49448416]
[1773155380776,0.48897014,87.949,87.92,10.62203715]
[1773155381458,0.48897014,87.949,87.911,0.49448416]
[1773155382581,10.62203715,87.95,87.912,11.37501137]
[1773155382582,0.48897014,87.947,87.912,11.37501137]
[1773155383368,0.48897014,87.947,87.913,0.49448416]
[1773155384370,0.48897014,87.947,87.912,11.37501137]
[1773155384660,0.48897014,87.93,87.902,11.37624186]
[1773155385065,11.86060579,87.939,87.903,0.49448416]
[1773155385266,0.48897014,87.949,87.911,0.49448416]
[1773155386687,11.36948104,87.955,87.921,0.45847909]
[1773155387184,0.49488434,87.954,87.921,0.45847909]
[1773155387368,0.49488434,87.949,87.913,0.45847909]
[1773155387576,0.49488434,87.949,87.92,10.62203715]
[1773155387765,0.49488434,87.949,87.92,11.08051624]
[1773155388489,0.49488434,87.958,87.921,0.45847909]
[1773155388668,0.49488434,87.966,87.93,10.62203715]
[1773155388864,10.62203715,87.96,87.924,0.45847909]
[1773155389063,0.49488434,87.949,87.91,10.62203715]
[1773155389264,0.49488434,87.949,87.913,0.47170817]
[1773155390086,0.49488434,87.949,87.891,1.13777292]
[1773155390087,0.46590788,87.929,87.893,0.47170817]
[1773155390474,10.64668465,87.91,87.871,11.38031887]
[1773155390670,0.46590788,87.907,87.86,10.64668465]
[1773155390871,0.46590788,87.907,87.859,11.38187322]
[1773155390872,0.46590788,87.899,87.859,11.38187322]
[1773155391068,0.46590788,87.889,87.847,0.47170817]
[1773155391286,0.46590788,87.889,87.848,11.38329842]
[1773155391483,0.46590788,87.889,87.85,10.64668465]
[1773155391688,0.46590788,87.889,87.849,0.47170817]
[1773155391892,10.64668465,87.88,87.849,0.47170817]
[1773155392268,10.64668465,87.88,87.832,28.46328981]
[1773155392269,0.46590788,87.869,87.833,11.38524244]
[1773155392468,11.11259253,87.86,87.833,11.38524244]
[1773155392774,10.64668465,87.9,87.833,11.38524244]
[1773155392775,0.46590788,87.869,87.833,11.85695061]
[1773155392978,0.46590788,87.869,87.834,0.47170817]
[1773155394188,0.46590788,87.868,87.834,0.47170817]
[1773155394684,0.46590788,87.866,87.834,0.47170817]
[1773155394910,0.46590788,87.866,87.834,11.8567158]
[1773155395674,0.46590788,87.866,87.834,40.31949786]
[1773155396071,0.46590788,87.874,87.84,10.64668465]
[1773155396274,28.44471914,87.89,87.85,11.11839282]
[1773155396275,11.37863547,87.884,87.85,11.11839282]
[1773155396488,0.46590788,87.879,87.84,0.47170817]
[1773155396688,0.46590788,87.879,87.84,11.11839282]
[1773155396890,1.24373911,87.9,87.842,0.47170817]
[1773155396891,0.46590788,87.887,87.842,0.47170817]
[1773155397073,0.46590788,87.887,87.851,0.47170817]
[1773155398478,11.37799403,87.889,87.842,0.47170817]
[1773155398479,0.46590788,87.879,87.842,0.47170817]
[1773155398694,0.46590788,87.889,87.851,0.47170817]
[1773155398994,0.46590788,87.889,87.831,1.13855017]
[1773155398995,0.46590788,87.899,87.861,0.47170817]
[1773155399195,0.46590788,87.899,87.832,11.38537207]
[1773155399196,0.46590788,87.879,87.832,11.38537207]
[1773155399397,1.24373911,87.898,87.832,11.38537207]
[1773155399398,0.46590788,87.869,87.832,39.84880225]
[1773155399798,0.46590788,87.869,87.83,0.2]
[1773155400088,0.46590788,87.859,87.83,0.2]
[1773155400993,11.38200277,87.858,87.831,11.3855017]
[1773155401574,0.46590788,87.859,87.831,11.3855017]
[1773155401996,11.38200277,87.858,87.831,11.3855017]
[1773155402294,0.46590788,87.839,87.809,11.38829735]
[1773155403182,0.46590788,87.837,87.801,11.38939192]
[1773155403479,0.46590788,87.837,87.801,11.86110009]
[1773155403679,11.38459436,87.838,87.78,10.64668465]
[1773155403680,0.46590788,87.819,87.78,10.64668465]
[1773155403881,10.64668465,87.81,87.776,11.3926358]
[1773155404193,0.46590788,87.81,87.776,11.3926358]
[1773155404398,0.46590788,87.816,87.781,0.47170817]
[1773155405103,10.64668465,87.82,87.781,0.47170817]
[1773155405280,11.38576096,87.829,87.793,0.47170817]
[1773155405602,11.38576096,87.829,87.759,46.71842641]
[1773155405603,0.46590788,87.809,87.76,11.86642102]
[1773155405896,0.46590788,87.809,87.77,10.64668465]
[1773155406296,39.85016337,87.829,87.761,0.47170817]
[1773155406297,10.64668465,87.8,87.761,0.47170817]
[1773155406500,10.64668465,87.79,87.761,0.47170817]
[1773155406700,0.46590788,87.799,87.761,0.47170817]
[1773155406876,0.46590788,87.789,87.756,11.39522882]
[1773155407200,130.93625109,87.829,87.727,15.42153533]
[1773155407201,0.46590788,87.767,87.727,15.42153533]
[1773155407405,0.46590788,87.759,87.729,11.39869798]
[1773155407586,0.46590788,87.749,87.706,0.47170817]
[1773155407793,10.64668465,87.75,87.711,0.47170817]
[1773155408096,0.46590788,87.749,87.711,0.47170817]
[1773155408487,0.46590788,87.767,87.721,0.47170817]
[1773155408798,0.46590788,87.759,87.721,0.47170817]
[1773155409387,11.39497253,87.758,87.722,11.39964889]
[1773155409590,0.46590788,87.759,87.722,11.87135706]
[1773155409783,0.46590788,87.782,87.741,0.47170817]
[1773155409988,10.64668465,87.78,87.741,0.47170817]
[1773155410185,10.64668465,87.81,87.771,0.47170817]
[1773155410798,11.38800675,87.812,87.78,10.64668465]
[1773155411105,11.38800675,87.812,87.771,0.47170817]
[1773155411106,0.46590788,87.809,87.771,0.47170817]
[1773155411409,0.46590788,87.787,87.751,11.39588152]
[1773155411586,10.64668465,87.77,87.73,10.64668465]
[1773155411791,11.11259253,87.77,87.73,22.04518753]
[1773155412415,11.11259253,87.77,87.731,0.47170817]
[1773155412618,0.46590788,87.77,87.74,10.64668465]
[1773155412912,0.46590788,87.77,87.731,0.47170817]
[1773155413204,11.11259253,87.77,87.731,0.47170817]
[1773155413414,11.39354441,87.769,87.732,11.39834951]
[1773155413790,0.46590788,87.768,87.74,10.64668465]
[1773155414014,10.64668465,87.78,87.732,39.8942233]
[1773155414314,10.64668465,87.77,87.732,11.39834951]
[1773155414700,10.64668465,87.76,87.729,0.47170817]
[1773155415014,10.64668465,87.77,87.731,0.47170817]
[1773155415615,39.87740545,87.769,87.731,0.47170817]
[1773155415913,39.87740545,87.769,87.732,11.39834951]
[1773155416110,41.12114456,87.769,87.731,0.47170817]
[1773155416612,12.63728352,87.769,87.732,0.47170817]
[1773155416915,41.12114456,87.769,87.732,0.47170817]
[1773155417112,10.64668465,87.76,87.725,0.47170817]
[1773155417428,41.22268015,87.769,87.705,0.47170817]
[1773155417429,11.39744013,87.739,87.705,0.47170817]
[1773155418198,11.39744013,87.739,87.704,11.4019885]
[1773155418199,11.39683464,87.744,87.711,0.47170817]
[1773155418401,10.64668465,87.74,87.711,0.47170817]
[1773155418599,10.64668465,87.74,87.704,11.4019885]
[1773155418807,11.39624228,87.749,87.711,0.47170817]
[1773155419008,11.39354441,87.769,87.721,0.47170817]
[1773155419216,11.39354441,87.769,87.731,0.4834282]
[1773155419409,0.10153559,87.778,87.733,0.4834282]
[1773155419594,11.392506,87.777,87.741,0.4834282]
[1773155420610,10.64668465,87.8,87.761,0.4834282]
[1773155420820,11.388482,87.809,87.771,0.4834282]
[1773155420997,1.24373911,87.808,87.771,0.4834282]
[1773155421609,41.10310678,87.809,87.771,0.4834282]
[1773155422011,1.24373911,87.808,87.772,11.39315499]
[1773155422214,11.388482,87.809,87.772,11.39315499]
[1773155422418,11.388482,87.809,87.771,0.4834282]
[1773155422419,1.24373911,87.808,87.771,0.4834282]
[1773155422715,10.64668465,87.8,87.761,0.4834282]
[1773155422916,1.24373911,87.807,87.762,0.4834282]
[1773155423122,11.49001759,87.809,87.771,0.4834282]
[1773155423624,41.10310678,87.809,87.771,0.4834282]
[1773155423914,11.388482,87.809,87.78,10.64668465]
[1773155424092,11.388482,87.809,87.773,0.4834282]
[1773155424500,1.24373911,87.808,87.772,11.39315499]
[1773155425215,1.24373911,87.808,87.771,0.4834282]
[1773155425216,10.64668465,87.8,87.771,0.4834282]
[1773155425521,1.3452747,87.808,87.771,0.4834282]
[1773155425923,1.3452747,87.808,87.771,11.87658379]
[1773155426429,39.86014782,87.807,87.771,11.87658379]
[1773155426918,0.10153559,87.806,87.771,0.4834282]
[1773155427126,1.24373911,87.805,87.771,0.4834282]
[1773155428414,1.24373911,87.834,87.791,0.4834282]
[1773155428623,0.10153559,87.845,87.801,0.4834282]
[1773155428624,11.38446475,87.839,87.801,0.4834282]
[1773155428994,11.38446475,87.839,87.811,0.4834282]
[1773155429195,1.24373911,87.849,87.811,0.4834282]
[1773155429196,11.38329842,87.848,87.811,0.4834282]
[1773155429421,11.38329842,87.848,87.821,0.4834282]
[1773155430222,11.37971871,87.876,87.841,0.4834282]
[1773155430424,1.24373911,87.875,87.841,0.4834282]
[1773155430626,11.37993035,87.874,87.843,0.4834282]
[1773155430915,12.62366946,87.874,87.843,0.4834282]
[1773155431220,11.37993035,87.874,87.85,10.64668465]
[1773155431417,1.24373911,87.888,87.861,0.4834282]
[1773155431622,1.24373911,87.896,87.861,0.4834282]
[1773155431825,11.3773017,87.895,87.87,0.4834282]
[1773155433234,3.69383402,87.923,87.87,0.4834282]
[1773155433235,11.37578777,87.906,87.88,11.13011285]
[1773155433523,39.8152572,87.906,87.87,10.64668465]
[1773155434033,11.37578777,87.906,87.872,0.4834282]
[1773155434713,0.10153559,87.899,87.862,0.4834282]
[1773155434914,1.24373911,87.905,87.871,0.4834282]
[1773155435129,11.37578777,87.906,87.871,0.4834282]
[1773155435421,11.37578777,87.906,87.88,10.64668465]
[1773155435614,0.10153559,87.921,87.88,10.64668465]
[1773155435615,11.37517447,87.911,87.881,0.4834282]
[1773155436302,11.3745401,87.916,87.881,0.4834282]
[1773155437221,1.24373911,87.926,87.891,0.4834282]
[1773155437521,0.1,87.93,87.901,0.4834282]
[1773155437822,0.1,87.93,87.911,0.4834282]
[1773155438220,0.1,87.93,87.92,10.64668465]
[1773155438526,0.1,87.93,87.911,0.4834282]
[1773155439533,11.3703552,87.948,87.921,0.4834282]
[1773155440422,11.3697474,87.953,87.921,0.4834282]
[1773155440610,1.24373911,87.952,87.921,0.4834282]
[1773155440813,10.64668465,87.95,87.921,0.4834282]
[1773155441028,11.36909061,87.958,87.921,0.4834282]
[1773155441204,45.45894917,87.992,87.912,39.8125398]
[1773155441205,3.29383402,87.973,87.95,10.64668465]
[1773155441526,0.45260461,88.008,87.961,0.4834282]
[1773155441706,0.45260461,88.008,87.97,11.13011285]
[1773155442031,18.3935628,88.016,87.981,0.4834282]
[1773155442235,10.64668465,88.01,87.981,0.4834282]
[1773155442404,0.45260461,88.009,87.969,0.4834282]
[1773155442604,0.45260461,88.009,87.98,10.64668465]
[1773155442913,11.36169971,88.015,87.99,10.64668465]
[1773155443113,11.36169971,88.015,87.991,0.4834282]
[1773155443727,11.3598634,88.03,88.001,0.4834282]
[1773155444028,0.45260461,88.029,87.98,10.64668465]
[1773155444226,0.45260461,88.029,87.939,45.48574008]
[1773155444227,0.45260461,88.019,87.958,3.69383402]
[1773155444406,0.45260461,88.019,87.98,10.64668465]
[1773155445314,0.45260461,88.017,87.98,10.64668465]
[1773155445826,11.36131245,88.018,87.99,10.64668465]
[1773155446334,11.36057171,88.024,88.0,10.64668465]
[1773155447209,0.45280713,88.019,87.98,10.64668465]